[Event "AUT Bundesliga 2024-25"]
[Site "Austria"]
[Date "2025.04.05"]
[Round "10.7"]
[White "Mons, Leon"]
[Black "Costa, Leonardo"]
[Result "1/2-1/2"]
[Annotator "RC"]
[ECO "C79"]
[WhiteElo "2479"]
[BlackElo "2510"]
[PlyCount "81"]
[EventDate "2024.08.28"]
[EventType "team-tourn"]
[EventCountry "AUT"]
[SourceTitle "playchess.com"]
[Source "ChessBase"]
[SourceQuality "1"]
[TimeControl "40/5400+30:1800+30"]

1. e4 {[%emt 0:00:04]} e5 {[%emt 0:00:05]} 2. Nf3 {[%emt 0:00:05]} Nc6 {[%emt 0:00:02]} 3. Bb5 {[%emt 0:00:13]} a6 {[%emt 0:00:05]} 4. Ba4 {[%emt 0:00:05]} Nf6 {[%emt 0:00:05]} 5. O-O {[%emt 0:00:26]} d6 {[%emt 0:00:05]} 6. c4 {[%emt 0:08:33]} Bg4 {[%emt 0:00:08]} 7. d3 {[%emt 0:01:42]} g6 {[%emt 0:00:56]} 8. h3 {[%emt 0:00:30]} Bxf3 {[%emt 0:00:05]} 9. Qxf3 {[%emt 0:00:04]} Nd7 {[%emt 0:00:05]} 10. Be3 {[%emt 0:02:45]} Bg7 {[%emt 0:00:05]} 11. c5 {[%emt 0:08:02]} Nd4 {[%emt 0:22:09]} 12. Bxd4 {[%emt 0:00:57]} exd4 {[%emt 0:00:03]} 13. cxd6 {[%emt 0:12:11]} cxd6 {[%emt 0:00:10]} 14. Qg3 {[%emt 0:04:23]} O-O {[%emt 0:08:44]} 15. Qxd6 {[%emt 0:10:03]} Ne5 {[%emt 0:00:04]} 16. Qxd8 {[%emt 0:00:55]} Rfxd8 {[%emt 0:00:25]} 17. Rd1 {[%emt 0:01:49]} g5 {[%emt 0:17:05]} 18. Na3 {[%emt 0:04:12]} Rac8 {[%emt 0:00:03]} 19. Bb3 {[%emt 0:00:50]} b5 {[%emt 0:00:04]} 20. Nc2 {[%emt 0:01:48]} Rc5 {[%emt 0:02:54]} 21. a4 {[%emt 0:15:38]} bxa4 {[%emt 0:14:04]} 22. Bxa4 {[%emt 0:00:31]} a5 {[%emt 0:04:10]} 23. Kf1 {[%emt 0:05:42]} h5 {[%emt 0:01:33]} 24. Ke2 {[%emt 0:02:00]} Rb8 {[%emt 0:05:17]} 25. Ra2 {[%emt 0:04:22]} Ng6 {[%emt 0:03:45]} 26. Na3 {[%emt 0:01:20]} Rb4 {[%emt 0:03:55]} 27. b3 {[%emt 0:02:28]} Nf4+ {[%emt 0:00:04]} 28. Kf1 {[%emt 0:00:10]} Rc3 {[%emt 0:00:02]} 29. Nc2 {[%emt 0:03:16]} Rb8 {[%emt 0:06:20]} 30. Ne1 {[%emt 0:00:05]} Ne6 {[%emt 0:02:03]} 31. Nf3 {[%emt 0:02:07]} Kf8 {[%emt 0:01:18]} 32. Bd7 {[%emt 0:01:30]} Nc5 {[%emt 0:00:57]} 33. Bf5 {[%emt 0:00:09]} Nxb3 {[%emt 0:02:28]} 34. Nxg5 {[%emt 0:00:28]} Rb5 {[%emt 0:01:56]} 35. f4 {[%emt 0:02:57]} Nc1 {[%emt 0:00:45]} 36. Ra4 {[%emt 0:00:53]} Nxd3 {[%emt 0:04:07]} 37. e5 {[%emt 0:03:29]} Nxf4 {[%emt 0:01:50]} 38. Raxd4 {[%emt 0:00:45]} Bxe5 {[%emt 0:00:03]} 39. Rd7 {[%emt 0:00:48]} Rc7 {[%emt 0:00:23]} 40. Nxf7 {[%emt 0:00:52]} Rxd7 {[%emt 0:01:30]} 41. Bxd7 {[%emt 0:02:16]} 1/2-1/2

[Event "AUT Bundesliga 2024-25"]
[Site "Austria"]
[Date "2025.04.05"]
[Round "10.8"]
[White "Halvax, Georg"]
[Black "Koelle, Tobias"]
[Result "1/2-1/2"]
[Annotator "RC"]
[ECO "D24"]
[WhiteElo "2441"]
[BlackElo "2459"]
[PlyCount "35"]
[EventDate "2024.08.28"]
[EventType "team-tourn"]
[EventCountry "AUT"]
[SourceTitle "playchess.com"]
[Source "ChessBase"]
[SourceQuality "1"]
[TimeControl "40/5400+30:1800+30"]

1. d4 {[%emt 0:00:05]} Nf6 {[%emt 0:00:09]} 2. c4 {[%emt 0:00:09]} e6 {[%emt 0:00:07]} 3. Nf3 {[%emt 0:00:07]} d5 {[%emt 0:00:06]} 4. Nc3 {[%emt 0:00:09]} dxc4 {[%emt 0:01:52]} 5. e4 {[%emt 0:00:08]} b5 {[%emt 0:00:05]} 6. e5 {[%emt 0:00:04]} Nd5 {[%emt 0:00:05]} 7. Nxb5 {[%emt 0:00:05]} Nb6 {[%emt 0:00:04]} 8. Be2 {[%emt 0:00:07]} Be7 {[%emt 0:00:05]} 9. O-O {[%emt 0:00:08]} Nc6 {[%emt 0:01:00]} 10. Be3 {[%emt 0:00:07]} O-O {[%emt 0:00:17]} 11. Nc3 {[%emt 0:00:07]} Rb8 {[%emt 0:01:07]} 12. Qb1 {[%emt 0:05:23]} Bb7 {[%emt 0:00:13]} 13. Rc1 {[%emt 0:00:09]} h6 {[%emt 0:00:30]} 14. Ne4 {[%emt 0:02:43]} Na5 {[%emt 0:05:21]} 15. Bd2 {[%emt 0:07:53]} Nc6 {[%emt 0:01:37]} 16. Be3 {[%emt 0:01:37]} Na5 {[%emt 0:02:00]} 17. Bd2 {[%emt 0:02:12]} Nc6 {[%emt 0:03:07]} 18. Be3 {[%emt 1:18:17]} 1/2-1/2

[Event "AUT Bundesliga 2024-25"]
[Site "Austria"]
[Date "2025.04.05"]
[Round "10.9"]
[White "Deuer, Marius"]
[Black "Handler, Lukas"]
[Result "1/2-1/2"]
[Annotator "RC"]
[ECO "D11"]
[WhiteElo "2464"]
[BlackElo "2444"]
[PlyCount "71"]
[EventDate "2024.08.28"]
[EventType "team-tourn"]
[EventCountry "AUT"]
[SourceTitle "playchess.com"]
[Source "ChessBase"]
[SourceQuality "1"]
[TimeControl "40/5400+30:1800+30"]

1. d4 {[%emt 0:00:02]} d5 {[%emt 0:00:05]} 2. c4 {[%emt 0:00:05]} c6 {[%emt 0:00:04]} 3. Nf3 {[%emt 0:00:04]} Nf6 {[%emt 0:00:05]} 4. g3 {[%emt 0:00:04]} Bf5 {[%emt 0:01:33]} 5. Nc3 {[%emt 0:00:09]} e6 {[%emt 0:00:19]} 6. Nh4 {[%emt 0:00:08]} Be4 {[%emt 0:01:15]} 7. f3 {[%emt 0:00:15]} Bg6 {[%emt 0:00:18]} 8. Qb3 {[%emt 0:02:16]} Qb6 {[%emt 0:01:19]} 9. c5 {[%emt 0:05:46]} Qxb3 {[%emt 0:01:17]} 10. axb3 {[%emt 0:00:03]} Na6 {[%emt 0:00:43]} 11. Nxg6 {[%emt 0:11:33]} hxg6 {[%emt 0:00:11]} 12. Ra4 {[%emt 0:00:39]} Nd7 {[%emt 0:11:40]} 13. b4 {[%emt 0:03:54]} Nc7 {[%emt 0:01:04]} 14. Bf4 {[%emt 0:04:56]} e5 {[%emt 0:00:37]} 15. Bxe5 {[%emt 0:06:43]} Nxe5 {[%emt 0:00:44]} 16. dxe5 {[%emt 0:00:05]} a5 {[%emt 0:00:15]} 17. bxa5 {[%emt 0:05:37]} Bxc5 {[%emt 0:01:22]} 18. Bg2 {[%emt 0:05:11]} O-O {[%emt 0:29:26]} 19. Kd2 {[%emt 0:05:12]} Rfe8 {[%emt 0:04:51]} 20. f4 {[%emt 0:02:03]} f6 {[%emt 0:01:14]} 21. exf6 {[%emt 0:02:47]} gxf6 {[%emt 0:00:05]} 22. e4 {[%emt 0:03:36]} d4 {[%emt 0:43:03]} 23. Ne2 {[%emt 0:07:49]} b5 {[%emt 0:00:00]} 24. Rxd4 {[%emt 0:12:39]} Bxd4 {[%emt 0:00:00]} 25. Nxd4 {[%emt 0:00:02]} c5 {[%emt 0:00:00]} 26. Nc6 {[%emt 0:00:04]} Re6 {[%emt 0:00:00]} 27. e5 {[%emt 0:00:02]} fxe5 {[%emt 0:00:00]} 28. Rc1 {[%emt 0:08:45]} c4 {[%emt 0:00:00]} 29. fxe5 {[%emt 0:00:02]} Ra6 {[%emt 0:00:00]} 30. Kc3 {[%emt 0:02:49]} Raxc6 {[%emt 0:00:00]} 31. Bxc6 {[%emt 0:00:02]} Rxc6 {[%emt 0:00:00]} 32. Rf1 {[%emt 0:03:13]} Nd5+ {[%emt 0:00:00]} 33. Kd4 {[%emt 0:00:30]} Nb4 {[%emt 0:00:00]} 34. Kc3 {[%emt 0:09:17]} Nd3 {[%emt 0:00:00]} 35. Ra1 {[%emt 0:01:03]} Ra6 {[%emt 0:01:43]} 36. e6 {[%emt 0:00:01]} 1/2-1/2

[Event "AUT Bundesliga 2024-25"]
[Site "Austria"]
[Date "2025.04.05"]
[Round "10.10"]
[White "Bauer, Sebastian"]
[Black "Rosner, Jonas"]
[Result "1/2-1/2"]
[Annotator "RC"]
[ECO "B13"]
[WhiteElo "2312"]
[BlackElo "2430"]
[PlyCount "79"]
[EventDate "2024.08.28"]
[EventType "team-tourn"]
[EventCountry "AUT"]
[SourceTitle "playchess.com"]
[Source "ChessBase"]
[SourceQuality "1"]
[TimeControl "40/5400+30:1800+30"]

1. e4 {[%emt 0:00:02]} c6 {[%emt 0:00:06]} 2. d4 {[%emt 0:00:06]} d5 {[%emt 0:00:05]} 3. exd5 {[%emt 0:00:07]} cxd5 {[%emt 0:00:06]} 4. Bd3 {[%emt 0:00:10]} Nc6 {[%emt 0:01:11]} 5. c3 {[%emt 0:00:07]} Qc7 {[%emt 0:02:06]} 6. Na3 {[%emt 0:02:51]} a6 {[%emt 0:01:42]} 7. Nc2 {[%emt 0:00:15]} Nf6 {[%emt 0:02:55]} 8. h3 {[%emt 0:00:26]} g6 {[%emt 0:01:07]} 9. Ne2 {[%emt 0:00:23]} Bf5 {[%emt 0:02:05]} 10. Bxf5 {[%emt 0:00:32]} gxf5 {[%emt 0:00:03]} 11. Bf4 {[%emt 0:00:16]} Qd7 {[%emt 0:01:54]} 12. O-O {[%emt 0:01:10]} e6 {[%emt 0:02:03]} 13. Ne1 {[%emt 0:01:48]} Rg8 {[%emt 0:05:19]} 14. Nd3 {[%emt 0:01:32]} Be7 {[%emt 0:07:41]} 15. Rc1 {[%emt 0:12:50]} Bd6 {[%emt 0:08:01]} 16. b4 {[%emt 0:15:59]} Ne4 {[%emt 0:06:55]} 17. Re1 {[%emt 0:07:25]} O-O-O {[%emt 0:05:45]} 18. Qa4 {[%emt 0:17:37]} Ne5 {[%emt 0:07:57]} 19. Qxd7+ {[%emt 0:01:50]} Nxd7 {[%emt 0:00:03]} 20. Ne5 {[%emt 0:05:19]} Nxe5 {[%emt 0:06:44]} 21. Bxe5 {[%emt 0:05:31]} Nd2 {[%emt 0:03:52]} 22. Kh2 {[%emt 0:02:35]} Be7 {[%emt 0:05:33]} 23. Rc2 {[%emt 0:05:03]} Nc4 {[%emt 0:00:29]} 24. Bf4 {[%emt 0:01:47]} Kd7 {[%emt 0:01:56]} 25. Nc1 {[%emt 0:02:07]} Rc8 {[%emt 0:04:49]} 26. Nd3 {[%emt 0:01:40]} Rc6 {[%emt 0:00:51]} 27. a4 {[%emt 0:02:57]} b6 {[%emt 0:03:42]} 28. b5 {[%emt 0:04:46]} Rcc8 {[%emt 0:01:09]} 29. bxa6 {[%emt 0:02:19]} Ra8 {[%emt 0:00:51]} 30. Ne5+ {[%emt 0:02:59]} Nxe5 {[%emt 0:00:27]} 31. Bxe5 {[%emt 0:00:01]} Rxa6 {[%emt 0:00:56]} 32. c4 {[%emt 0:01:15]} Rc8 {[%emt 0:00:45]} 33. Rec1 {[%emt 0:00:22]} Ba3 {[%emt 0:04:34]} 34. Ra1 {[%emt 0:00:09]} Bd6 {[%emt 0:00:20]} 35. Rac1 {[%emt 0:00:53]} Ba3 {[%emt 0:04:21]} 36. Ra1 {[%emt 0:00:01]} Be7 {[%emt 0:00:09]} 37. Rac1 {[%emt 0:00:32]} f6 {[%emt 0:00:20]} 38. Bg3 {[%emt 0:01:15]} Ba3 {[%emt 0:00:53]} 39. cxd5 {[%emt 0:01:09]} Rxc2 {[%emt 0:04:56]} 40. Rxc2 {[%emt 0:01:40]} 1/2-1/2

[Event "AUT Bundesliga 2024-25"]
[Site "Austria"]
[Date "2025.04.05"]
[Round "10.11"]
[White "Hinterreiter, Markus"]
[Black "Genser, Harald"]
[Result "1/2-1/2"]
[Annotator "ChessBase"]
[ECO "E17"]
[WhiteElo "2236"]
[BlackElo "2271"]
[PlyCount "77"]
[EventDate "2024.08.28"]
[EventType "team-tourn"]
[EventCountry "AUT"]
[SourceTitle "playchess.com"]
[Source "ChessBase"]
[SourceQuality "1"]
[TimeControl "40/5400+30:1800+30"]

1. Nf3 {[%emt 0:00:03]} d5 {[%emt 0:00:22]} 2. g3 {[%emt 0:00:16]} Nf6 {[%emt 0:00:35]} 3. Bg2 {[%emt 0:00:14]} e6 {[%emt 0:00:39]} 4. O-O {[%emt 0:00:24]} Be7 {[%emt 0:01:24]} 5. c4 {[%emt 0:00:43]} O-O {[%emt 0:01:05]} 6. b3 {[%emt 0:00:35]} b6 {[%emt 0:02:57]} 7. d4 {[%emt 0:01:00]} Bb7 {[%emt 0:01:47]} 8. Nc3 {[%emt 0:00:52]} Nbd7 {[%emt 0:01:57]} 9. Bb2 {[%emt 0:02:12]} c5 {[%emt 0:03:53]} 10. Ne1 {[%emt 0:02:09]} Ne4 {[%emt 0:23:46]} 11. dxc5 {[%emt 0:20:06]} Ndxc5 {[%emt 0:02:48]} 12. cxd5 {[%emt 0:03:11]} exd5 {[%emt 0:05:59]} 13. Nd3 {[%emt 0:06:15]} Ne6 {[%emt 0:17:08]} 14. Nb5 {[%emt 0:13:24]} a6 {[%emt 0:03:38]} 15. Nd4 {[%emt 0:01:14]} Bf6 {[%emt 0:02:05]} 16. Nxe6 {[%emt 0:02:06]} fxe6 {[%emt 0:01:44]} 17. Ne5 {[%emt 0:07:09]} Qd6 {[%emt 0:06:59]} 18. Bxe4 {[%emt 0:05:25]} Bxe5 {[%emt 0:00:13]} 19. Bxe5 {[%emt 0:00:14]} Qxe5 {[%emt 0:00:08]} 20. Bf3 {[%emt 0:01:38]} Rac8 {[%emt 0:00:41]} 21. Qd2 {[%emt 0:01:28]} Qc3 {[%emt 0:02:24]} 22. Rfd1 {[%emt 0:03:13]} Qxd2 {[%emt 0:02:05]} 23. Rxd2 {[%emt 0:00:01]} Rc7 {[%emt 0:02:15]} 24. Kf1 {[%emt 0:03:26]} Rfc8 {[%emt 0:00:29]} 25. Ke1 {[%emt 0:00:43]} Rc1+ {[%emt 0:00:45]} 26. Rxc1 {[%emt 0:00:13]} Rxc1+ {[%emt 0:00:03]} 27. Rd1 {[%emt 0:00:07]} Rc2 {[%emt 0:00:34]} 28. Ra1 {[%emt 0:02:26]} Kf7 {[%emt 0:00:33]} 29. Kd1 {[%emt 0:00:18]} Rc7 {[%emt 0:00:33]} 30. Rc1 {[%emt 0:01:07]} Rxc1+ {[%emt 0:01:30]} 31. Kxc1 {[%emt 0:01:49]} Kf6 {[%emt 0:03:02]} 32. Kd2 {[%emt 0:02:21]} g5 {[%emt 0:00:52]} 33. e3 {[%emt 0:02:43]} e5 {[%emt 0:00:58]} 34. b4 {[%emt 0:01:16]} Bc6 {[%emt 0:01:22]} 35. Bg4 {[%emt 0:02:29]} h6 {[%emt 0:01:12]} 36. Kc3 {[%emt 0:00:52]} a5 {[%emt 0:01:18]} 37. a3 {[%emt 0:00:42]} axb4+ {[%emt 0:01:52]} 38. axb4 {[%emt 0:03:20]} Be8 {[%emt 0:00:49]} 39. Bc8 {[%emt 0:01:57]} 1/2-1/2

[Event "AUT Bundesliga 2024-25"]
[Site "Austria"]
[Date "2025.04.05"]
[Round "10.12"]
[White "Hartl, Daniel"]
[Black "Leeb, Simon"]
[Result "0-1"]
[Annotator "ChessBase"]
[ECO "D15"]
[WhiteElo "2271"]
[BlackElo "2220"]
[PlyCount "54"]
[EventDate "2024.08.28"]
[EventType "team-tourn"]
[EventCountry "AUT"]
[SourceTitle "playchess.com"]
[Source "ChessBase"]
[SourceQuality "1"]
[TimeControl "40/5400+30:1800+30"]

1. d4 {[%emt 0:00:03]} d5 {[%emt 0:00:22]} 2. c4 {[%emt 0:00:06]} c6 {[%emt 0:00:04]} 3. Nf3 {[%emt 0:00:03]} Nf6 {[%emt 0:00:05]} 4. e3 {[%emt 0:00:05]} Bf5 {[%emt 0:00:04]} 5. Nc3 {[%emt 0:00:05]} a6 {[%emt 0:00:14]} 6. Ne5 {[%emt 0:00:34]} Nbd7 {[%emt 0:00:53]} 7. Qb3 {[%emt 0:00:28]} Qc7 {[%emt 0:00:12]} 8. cxd5 {[%emt 0:00:14]} Nxe5 {[%emt 0:00:12]} 9. dxe5 {[%emt 0:00:07]} Nxd5 {[%emt 0:00:04]} 10. Nxd5 {[%emt 0:00:07]} cxd5 {[%emt 0:00:04]} 11. Bd2 {[%emt 0:00:19]} Qxe5 {[%emt 0:00:23]} 12. Qxb7 {[%emt 0:02:49]} Rb8 {[%emt 0:00:05]} 13. Qa7 {[%emt 0:00:11]} Qxb2 {[%emt 0:12:41]} 14. Rc1 {[%emt 0:01:44]} e5 {[%emt 0:03:49]} 15. Qxa6 {[%emt 0:30:26]} Bb4 {[%emt 0:14:42]} 16. Bb5+ {[%emt 0:00:18]} Kf8 {[%emt 0:20:09]} 17. O-O {[%emt 0:00:07]} Qxd2 {[%emt 0:02:48]} 18. Rc7 {[%emt 0:07:01]} Kg8 {[%emt 0:07:10]} 19. a3 {[%emt 0:08:26]} Bf8 {[%emt 0:05:25]} 20. a4 {[%emt 0:00:41]} Be6 {[%emt 0:07:35]} 21. Qa7 {[%emt 0:04:07]} Rd8 {[%emt 0:02:20]} 22. f4 {[%emt 0:00:05]} d4 {[%emt 0:07:31]} 23. fxe5 {[%emt 0:08:22]} Qxe3+ {[%emt 0:01:51]} 24. Kh1 {[%emt 0:00:06]} Qxe5 {[%emt 0:01:45]} 25. Rcxf7 {[%emt 0:01:51]} Bd6 {[%emt 0:00:22]} 26. R7f4 {[%emt 0:00:15]} g5 {[%emt 0:00:33]} 27. Qa5 {[%emt 0:06:25]} Bc7 {[%emt 0:01:43]} 0-1

[Event "AUT Bundesliga 2024-25"]
[Site "Austria"]
[Date "2025.04.05"]
[Round "10.13"]
[White "Kadric, Denis"]
[Black "Nguyen, Thai Dai Van"]
[Result "0-1"]
[Annotator "RC"]
[ECO "C47"]
[WhiteElo "2533"]
[BlackElo "2668"]
[PlyCount "78"]
[EventDate "2024.08.28"]
[EventType "team-tourn"]
[EventCountry "AUT"]
[SourceTitle "playchess.com"]
[Source "ChessBase"]
[SourceQuality "1"]
[TimeControl "40/5400+30:1800+30"]

1. e4 {[%emt 0:00:03]} e5 {[%emt 0:00:09]} 2. Nf3 {[%emt 0:00:07]} Nf6 {[%emt 0:00:06]} 3. Nc3 {[%emt 0:07:46]} Nc6 {[%emt 0:00:12]} 4. d4 {[%emt 0:05:41]} exd4 {[%emt 0:00:06]} 5. Nxd4 {[%emt 0:00:02]} Bb4 {[%emt 0:00:08]} 6. Nxc6 {[%emt 0:00:06]} bxc6 {[%emt 0:00:04]} 7. Bd3 {[%emt 0:00:02]} d5 {[%emt 0:00:19]} 8. exd5 {[%emt 0:00:03]} O-O {[%emt 0:00:09]} 9. O-O {[%emt 0:00:02]} cxd5 {[%emt 0:00:07]} 10. Bg5 {[%emt 0:07:04]} c6 {[%emt 0:01:56]} 11. Qf3 {[%emt 0:00:50]} h6 {[%emt 0:01:56]} 12. Bxf6 {[%emt 0:00:03]} Qxf6 {[%emt 0:00:06]} 13. Qxf6 {[%emt 0:00:02]} gxf6 {[%emt 0:00:09]} 14. Ne2 {[%emt 0:00:02]} Rb8 {[%emt 0:01:24]} 15. Ng3 {[%emt 0:02:32]} Be6 {[%emt 0:22:46]} 16. Nf5 {[%emt 0:01:40]} c5 {[%emt 0:17:50]} 17. Nxh6+ {[%emt 0:19:24]} Kh8 {[%emt 0:00:06]} 18. Rad1 {[%emt 0:00:11]} c4 {[%emt 0:01:14]} 19. Bf5 {[%emt 0:00:14]} Kg7 {[%emt 0:05:04]} 20. Bxe6 {[%emt 0:01:34]} fxe6 {[%emt 0:00:10]} 21. Ng4 {[%emt 0:00:01]} Rfc8 {[%emt 0:04:46]} 22. Ne3 {[%emt 0:10:15]} Bc5 {[%emt 0:10:01]} 23. b3 {[%emt 0:00:03]} a5 {[%emt 0:00:39]} 24. Rb1 {[%emt 0:07:17]} a4 {[%emt 0:04:40]} 25. Rfd1 {[%emt 0:03:58]} Kg6 {[%emt 0:15:30]} 26. Kf1 {[%emt 0:02:43]} cxb3 {[%emt 0:06:35]} 27. cxb3 {[%emt 0:00:04]} Bxe3 {[%emt 0:00:15]} 28. fxe3 {[%emt 0:00:03]} Rc3 {[%emt 0:01:05]} 29. bxa4 {[%emt 0:02:07]} Rh8 {[%emt 0:00:01]} 30. h3 {[%emt 0:10:29]} Rxe3 {[%emt 0:00:39]} 31. Re1 {[%emt 0:00:18]} Rxe1+ {[%emt 0:00:09]} 32. Rxe1 {[%emt 0:00:03]} e5 {[%emt 0:01:13]} 33. Rd1 {[%emt 0:10:24]} d4 {[%emt 0:00:12]} 34. Ke2 {[%emt 0:00:01]} Ra8 {[%emt 0:00:35]} 35. Kf3 {[%emt 0:00:18]} Rxa4 {[%emt 0:00:14]} 36. Rd2 {[%emt 0:00:00]} f5 {[%emt 0:01:57]} 37. g3 {[%emt 0:00:14]} Ra3+ {[%emt 0:00:22]} 38. Kf2 {[%emt 0:00:02]} Kg5 {[%emt 0:00:35]} 39. Kg2 {[%emt 0:00:03]} Ra4 {[%emt 0:03:37]} 0-1

[Event "AUT Bundesliga 2024-25"]
[Site "Austria"]
[Date "2025.04.05"]
[Round "10.14"]
[White "Pechac, Jergus"]
[Black "Petrov, Nikita"]
[Result "1/2-1/2"]
[Annotator "RC"]
[ECO "E20"]
[WhiteElo "2600"]
[BlackElo "2567"]
[PlyCount "69"]
[EventDate "2024.08.28"]
[EventType "team-tourn"]
[EventCountry "AUT"]
[SourceTitle "playchess.com"]
[Source "ChessBase"]
[SourceQuality "1"]
[TimeControl "40/5400+30:1800+30"]

1. d4 {[%emt 0:01:04]} Nf6 {[%emt 0:00:08]} 2. c4 {[%emt 0:00:36]} e6 {[%emt 0:00:07]} 3. Nc3 {[%emt 0:01:23]} Bb4 {[%emt 0:00:18]} 4. g3 {[%emt 0:02:14]} c5 {[%emt 0:03:35]} 5. Nf3 {[%emt 0:00:55]} Ne4 {[%emt 0:03:14]} 6. Qd3 {[%emt 0:09:56]} Qa5 {[%emt 0:15:38]} 7. Qxe4 {[%emt 0:01:19]} Bxc3+ {[%emt 0:00:04]} 8. Bd2 {[%emt 0:00:36]} Bxd2+ {[%emt 0:00:08]} 9. Nxd2 {[%emt 0:00:08]} O-O {[%emt 0:05:34]} 10. Bg2 {[%emt 0:07:25]} Nc6 {[%emt 0:09:53]} 11. dxc5 {[%emt 0:13:27]} Qxc5 {[%emt 0:00:34]} 12. O-O {[%emt 0:01:00]} b5 {[%emt 0:06:41]} 13. Rfc1 {[%emt 0:09:41]} bxc4 {[%emt 0:06:53]} 14. Qxc4 {[%emt 0:01:58]} Qxc4 {[%emt 0:02:26]} 15. Nxc4 {[%emt 0:00:08]} d5 {[%emt 0:00:38]} 16. Nb6 {[%emt 0:00:53]} axb6 {[%emt 0:00:40]} 17. Rxc6 {[%emt 0:00:06]} b5 {[%emt 0:03:37]} 18. Rc7 {[%emt 0:04:50]} Rd8 {[%emt 0:04:37]} 19. e4 {[%emt 0:00:38]} dxe4 {[%emt 0:03:05]} 20. Bxe4 {[%emt 0:00:27]} Rb8 {[%emt 0:00:26]} 21. b3 {[%emt 0:08:37]} b4 {[%emt 0:04:14]} 22. Rac1 {[%emt 0:02:54]} Kf8 {[%emt 0:02:08]} 23. h4 {[%emt 0:05:40]} h6 {[%emt 0:00:34]} 24. Ra7 {[%emt 0:11:30]} Bd7 {[%emt 0:01:37]} 25. Rc4 {[%emt 0:01:22]} Be8 {[%emt 0:02:19]} 26. Kg2 {[%emt 0:05:46]} Rd2 {[%emt 0:01:56]} 27. Bc6 {[%emt 0:00:34]} Bxc6+ {[%emt 0:07:01]} 28. Rxc6 {[%emt 0:09:23]} Rd5 {[%emt 0:00:05]} 29. Rcc7 {[%emt 0:00:00]} Rf5 {[%emt 0:00:06]} 30. g4 {[%emt 0:00:00]} Rf4 {[%emt 0:06:38]} 31. Kg3 {[%emt 0:00:00]} g5 {[%emt 0:00:04]} 32. Rc5 {[%emt 0:00:00]} Rd8 {[%emt 0:02:05]} 33. hxg5 {[%emt 0:00:00]} hxg5 {[%emt 0:00:02]} 34. Rxg5 {[%emt 0:00:00]} Rf6 {[%emt 0:00:24]} 35. Rb5 {[%emt 0:02:13]} 1/2-1/2

[Event "AUT Bundesliga 2024-25"]
[Site "Austria"]
[Date "2025.04.05"]
[Round "10.15"]
[White "Erdos, Viktor"]
[Black "Zilka, Stepan"]
[Result "*"]
[Annotator "TA"]
[ECO "C65"]
[WhiteElo "2542"]
[BlackElo "2515"]
[PlyCount "51"]
[EventDate "2024.08.28"]
[EventType "team-tourn"]
[EventCountry "AUT"]
[SourceTitle "playchess.com"]
[Source "ChessBase"]
[SourceQuality "1"]
[TimeControl "40/5400+30:1800+30"]

{[%evp 9,51,26,35,27,29,43,47,18,75,61,72,65,56,35,36,37,40,25,22,29,30,35,26,26,33,20,33,39,46,23,28,29,29,23,22,25,32,27,43,27,48,32,47,0]} 1. e4 {[%emt 0:00:13]} e5 {[%emt 0:00:05]} 2. Nf3 {[%emt 0:00:05]} Nc6 {[%emt 0:00:03]} 3. Bb5 {[%emt 0:00:07]} Nf6 {[%emt 0:00:06]} 4. d3 {[%emt 0:00:05]} Ne7 {[%emt 0:00:04]} 5. Nc3 {[%emt 0:03:49]} c6 {[%emt 0:00:07]} 6. Bc4 {[%emt 0:00:05] C65: Ruy Lopez: Berlin Defence (3...Nf6), unusual lines and 4 0-0 Bc5.} d6 {[%emt 0:00:08] 6...Ng6 is vanishing.} 7. d4 {[%emt 0:03:17]} exd4 {[%emt 0:03:30]} 8. Qxd4 {[%emt 0:05:57]} d5 $146 {[%emt 0:00:38]} (8... Ng6 $1 $11) (8... Ng6 9. h3 Be7 10. a4 O-O 11. O-O Be6 12. Re1 Nd7 13. Ba2 Qc8 14. Qe3 Bxa2 15. Nxa2 {1-0 Duda,J (2726)-Antipov,M (2600) AI Cup Play In rapid 2023 (9)}) 9. exd5 {[%emt 0:10:17] White is more active.} Nexd5 {[%emt 0:00:02]} 10. Nxd5 {[%emt 0:07:10]} cxd5 {[%emt 0:00:28]} 11. Bb5+ {[%emt 0:12:25]} Bd7 {[%emt 0:00:01]} 12. Bxd7+ {[%emt 0:00:07]} Qxd7 {[%emt 0:00:03]} 13. O-O {[%emt 0:01:00] Hoping for Ne5.} Be7 {[%emt 0:00:06]} 14. Bg5 {[%emt 0:01:09]} O-O {[%emt 0:00:20]} 15. Qd3 {[%emt 0:00:15]} h6 {[%emt 0:02:32]} 16. Bh4 {[%emt 0:02:43]} Rad8 {[%emt 0:01:40]} 17. c3 {[%emt 0:01:49]} Ne4 {[%emt 0:00:54]} 18. Bxe7 {[%emt 0:00:21]} Qxe7 {[%emt 0:00:02]} 19. Nd4 {[%emt 0:01:29]} Nc5 {[%emt 0:07:54]} 20. Qd2 {[%emt 0:01:01]} Rfe8 {[%emt 0:01:23]} 21. Rad1 {[%emt 0:47:36]} Qf6 {[%emt 1:20:54]} 22. Rfe1 {[%emt 0:02:11]} Ne4 {[%emt 0:07:01]} 23. Qc2 {[%emt 0:02:02]} Qa6 {[%emt 0:02:08]} 24. a3 {[%emt 0:05:26]} Nf6 {[%emt 0:05:07]} 25. Nf5 {[%emt 0:07:33]} Re6 {[%emt 0:02:26] Mistake:       	White=1     	Black=1      Inaccurate:     	White=1     	---        OK:         	White=7     	Black=4      Best:        	---       	Black=3} 26. Nd4 {[%emt 0:00:55] Weighted Error Value: White=0.07 (flawless) /Black=0.11 (very precise)} (26. Rxe6 $14 Qxe6 27. h3) *